bitfinex/quotes_SOLUSD_20251119
["timestamp","ask_amount","ask_price","bid_price","bid_amount"]
[1763583407206,11.2058217,132.2,132.19,19.92096]
[1763583407406,11.8558217,132.2,132.19,19.92096]
[1763583408123,11.2058217,132.2,132.19,19.92096]
[1763583408318,11.2058217,132.2,132.19,1.8]
[1763583408833,11.2058217,132.2,132.19,48.1]
[1763583409346,9.78882769,132.19,132.11,0.65]
[1763583409545,11.2058217,132.12,132.11,0.65]
[1763583409714,11.2058217,132.12,132.11,2.03]
[1763583410109,11.2058217,132.12,132.11,20.15096]
[1763583411617,11.2058217,132.14,132.12,9.78882769]
[1763583411822,11.2058217,132.21,132.12,10.48882769]
[1763583411823,11.2058217,132.15,132.12,10.48882769]
[1763583412008,11.2058217,132.15,132.14,18.12096]
[1763583412317,11.2058217,132.15,132.14,19.92096]
[1763583412518,11.2058217,132.15,132.14,20.62096]
[1763583412731,0.69,132.2,132.14,20.62096]
[1763583412946,7.16651291,132.16,132.15,0.7]
[1763583413239,7.16651291,132.16,132.15,28.60978769]
[1763583413413,7.16651291,132.17,132.16,9.78882769]
[1763583413606,7.16651291,132.18,132.16,10.48882769]
[1763583413816,7.16651291,132.18,132.17,2.5]
[1763583414957,0.69,132.22,132.18,39.13348709]
[1763583415141,0.69,132.22,132.18,33.33348709]
[1763583415633,0.69,132.22,132.18,34.03348709]
[1763583416014,7.16272655,132.19,132.18,34.03348709]
[1763583416213,7.16272655,132.21,132.2,18.12096]
[1763583416420,7.16272655,132.21,132.2,53.25444709]
[1763583417447,7.16272655,132.21,132.2,53.95444709]
[1763583418622,7.16272655,132.22,132.2,63.74327478]
[1763583418815,7.26272655,132.24,132.21,0.7]
[1763583419017,7.16272655,132.23,132.21,0.7]
[1763583419237,7.26272655,132.24,132.21,0.7]
[1763583419543,7.16272655,132.23,132.21,0.7]
[1763583420218,7.16272655,132.22,132.2,51.45444709]
[1763583420421,7.16272655,132.21,132.2,51.45444709]
[1763583420745,7.16272655,132.21,132.17,0.7]
[1763583421050,0.69,132.21,132.18,1.8]
[1763583421348,0.69,132.23,132.18,1.8]
[1763583421760,0.69,132.23,132.18,2.5]
[1763583422253,7.16272655,132.19,132.18,2.5]
[1763583422466,7.16272655,132.19,132.18,1.8]
[1763583422763,0.69,132.21,132.18,1.8]
[1763583422920,0.1,132.24,132.19,0.7]
[1763583423123,7.16272655,132.21,132.19,34.03348709]
[1763583423547,7.16272655,132.22,132.2,0.7]
[1763583423756,7.16272655,132.22,132.21,1.8]
[1763583424154,7.16272655,132.22,132.21,2.5]
[1763583424657,7.16272655,132.22,132.21,1.8]
[1763583424980,7.85272655,132.22,132.17,18.12096]
[1763583425134,0.69,132.21,132.18,1.8]
[1763583425335,7.16272655,132.19,132.18,1.8]
[1763583425937,7.16272655,132.19,132.18,2.5]
[1763583426556,7.16272655,132.2,132.19,18.12096]
[1763583426767,7.26272655,132.24,132.19,18.12096]
[1763583426768,7.16272655,132.21,132.19,18.12096]
[1763583426949,7.16272655,132.21,132.2,1.8]
[1763583427453,7.16272655,132.21,132.2,20.62096]
[1763583427769,7.85272655,132.21,132.17,9.78882769]
[1763583427944,7.16272655,132.21,132.19,18.12096]
[1763583429152,0.69,132.23,132.18,2.5]
[1763583429153,7.16272655,132.2,132.18,0.7]
[1763583429468,7.16272655,132.2,132.19,1.8]
[1763583429765,7.16272655,132.21,132.19,1.8]
[1763583430069,7.16272655,132.21,132.19,35.13348709]
[1763583430370,7.16272655,132.23,132.2,0.7]
[1763583430667,7.26272655,132.24,132.21,1.8]
[1763583430848,7.95272655,132.24,132.21,35.13348709]
[1763583431166,7.16272655,132.23,132.21,35.13348709]
[1763583431958,0.1,132.24,132.22,0.7]
[1763583432157,0.1,132.24,132.23,1.8]
[1763583432365,0.1,132.24,132.23,9.66272655]
[1763583432557,0.1,132.24,132.23,27.78368655]
[1763583432978,0.1,132.24,132.23,37.57251424]
[1763583433474,0.1,132.24,132.23,19.45155424]
[1763583433774,7.16272655,132.29,132.24,18.82096]
[1763583433980,6.23760655,132.29,132.25,8.96272655]
[1763583434153,6.23760655,132.29,132.25,9.66272655]
[1763583434553,7.16272655,132.27,132.26,1.8]
[1763583435267,7.16272655,132.28,132.26,1.8]
[1763583435577,18.12096,132.31,132.26,1.8]
[1763583435578,7.16272655,132.27,132.26,1.8]
[1763583435880,7.16272655,132.28,132.26,1.8]
[1763583436473,7.16272655,132.28,132.27,1.8]
[1763583436682,18.12096,132.31,132.27,1.8]
[1763583436864,7.16272655,132.29,132.27,1.8]
[1763583437174,7.16272655,132.28,132.27,1.8]
[1763583437766,18.12096,132.31,132.27,1.8]
[1763583437963,7.16272655,132.28,132.27,35.13348709]
[1763583439558,25.97368655,132.28,132.24,33.33348709]
[1763583439780,7.16272655,132.26,132.24,1.8]
[1763583440457,7.16272655,132.25,132.24,1.8]
[1763583440692,7.16272655,132.25,132.24,35.13348709]
[1763583440853,7.16272655,132.25,132.24,1.8]
[1763583441803,7.16272655,132.25,132.22,1.8]
[1763583442088,10.44882769,132.27,132.22,1.8]
[1763583442281,7.16272655,132.23,132.22,1.8]
[1763583442670,9.78882769,132.25,132.22,1.8]
[1763583442872,7.16272655,132.25,132.22,1.8]
[1763583445974,7.16272655,132.25,132.22,35.13348709]
[1763583446179,7.16272655,132.24,132.22,35.13348709]
[1763583446974,9.78882769,132.27,132.22,35.13348709]
[1763583447284,7.16272655,132.24,132.22,35.13348709]
[1763583452874,7.16272655,132.25,132.22,35.80348709]
[1763583455268,7.16272655,132.27,132.23,7.83272655]
[1763583455467,1.8,132.29,132.24,7.16272655]
[1763583455468,9.78882769,132.29,132.24,7.16272655]
[1763583455785,7.16272655,132.29,132.25,1.8]
[1763583455989,7.16272655,132.29,132.25,2.47]
[1763583457091,9.78882769,132.31,132.26,7.83272655]
[1763583457092,7.16272655,132.31,132.26,7.83272655]
[1763583457289,7.16272655,132.31,132.27,7.83272655]
[1763583457480,7.16272655,132.3,132.28,1.8]
[1763583458599,7.87272655,132.29,132.27,1.8]
[1763583458761,7.16272655,132.28,132.27,1.8]
[1763583458961,7.87272655,132.28,132.27,1.8]
[1763583459391,7.87272655,132.28,132.25,1.8]
[1763583459598,7.16272655,132.26,132.25,1.8]
[1763583459771,7.16272655,132.26,132.24,1.8]
[1763583459967,7.16272655,132.27,132.24,1.8]
[1763583460192,7.16272655,132.25,132.21,51.45444709]
[1763583460374,7.16272655,132.24,132.23,1.8]
[1763583460791,7.87272655,132.25,132.23,1.8]
[1763583461392,7.87272655,132.25,132.21,18.79096]
[1763583461596,7.87272655,132.25,132.23,1.8]
[1763583462396,7.16272655,132.26,132.23,1.8]
[1763583462573,0.71,132.27,132.23,1.8]
[1763583462782,7.16272655,132.26,132.23,2.47]
[1763583463093,7.16272655,132.25,132.23,1.8]
[1763583463294,7.16272655,132.24,132.19,18.79096]
[1763583463470,7.16272655,132.22,132.2,1.8]
[1763583463880,7.16272655,132.22,132.2,2.47]
[1763583464398,0.71,132.27,132.21,25.95368655]
[1763583464592,7.16272655,132.26,132.22,7.16272655]
[1763583464792,7.16272655,132.26,132.23,1.8]
[1763583465094,7.16272655,132.25,132.23,1.8]
[1763583465276,7.87272655,132.25,132.23,1.8]
[1763583465683,7.16272655,132.25,132.23,1.8]
[1763583466080,7.16272655,132.24,132.23,1.8]
[1763583466507,7.16272655,132.24,132.21,0.67]
[1763583466680,7.16272655,132.24,132.22,1.8]
[1763583467911,7.87272655,132.25,132.22,1.8]
[1763583468118,7.16272655,132.24,132.22,2.47]
[1763583468407,7.16272655,132.24,132.23,0.67]
[1763583468582,7.16272655,132.24,132.22,1.8]
[1763583468926,7.16272655,132.26,132.23,0.67]
[1763583469586,7.16272655,132.27,132.23,0.67]
[1763583469786,7.16272655,132.26,132.23,34.00348709]
[1763583470313,7.16272655,132.26,132.24,0.67]
[1763583470515,7.16272655,132.26,132.25,1.8]
[1763583470713,7.16272655,132.27,132.25,35.13348709]
[1763583470909,7.16272655,132.27,132.25,35.80348709]
[1763583471211,9.78882769,132.31,132.26,0.67]
[1763583471515,7.16272655,132.28,132.26,33.33348709]
[1763583471882,7.16272655,132.27,132.26,33.33348709]
[1763583472589,0.71,132.29,132.26,35.13348709]
[1763583472810,11.2109313,132.28,132.26,35.13348709]
[1763583473314,11.2109313,132.28,132.26,35.80348709]
[1763583473484,11.2109313,132.28,132.26,35.13348709]
[1763583474621,11.2109313,132.27,132.26,35.13348709]
[1763583475893,11.2109313,132.28,132.26,35.13348709]
[1763583476211,11.2109313,132.28,132.26,35.80348709]
[1763583476704,11.2109313,132.27,132.26,33.33348709]
[1763583476914,11.9209313,132.27,132.26,33.33348709]
[1763583477608,11.2109313,132.27,132.26,33.33348709]
[1763583479604,11.9209313,132.27,132.26,33.33348709]
[1763583480414,11.9209313,132.27,132.25,1.8]
[1763583480415,9.78882769,132.26,132.18,0.67]
[1763583480591,11.2109313,132.23,132.19,13.6809313]
[1763583480793,11.2109313,132.24,132.19,13.6809313]
[1763583481144,18.12096,132.27,132.2,11.8809313]
[1763583481293,11.2109313,132.24,132.2,0.67]
[1763583481492,11.2109313,132.24,132.21,0.67]
[1763583482118,11.2109313,132.26,132.22,1.8]
[1763583482616,11.2109313,132.25,132.23,0.67]
[1763583483418,11.2109313,132.26,132.23,0.67]
[1763583483922,11.2109313,132.25,132.23,0.67]
[1763583486192,11.2109313,132.25,132.23,33.33348709]
[1763583486193,11.2109313,132.24,132.23,33.33348709]
[1763583486409,11.9209313,132.24,132.22,1.8]
[1763583486627,11.2109313,132.23,132.22,1.8]
[1763583486990,0.71,132.24,132.22,1.8]
[1763583487307,11.2109313,132.23,132.22,1.8]
[1763583488007,11.2109313,132.23,132.19,0.67]
[1763583488196,11.2109313,132.22,132.2,1.8]
[1763583489097,11.2109313,132.23,132.2,1.8]
[1763583489527,11.2109313,132.21,132.18,33.33348709]
[1763583489740,11.2109313,132.21,132.15,2.47]
[1763583489741,11.2109313,132.19,132.15,2.47]
[1763583489903,11.2109313,132.18,132.15,35.80348709]
[1763583490402,11.2109313,132.18,132.16,0.67]
[1763583490608,11.2109313,132.17,132.15,35.13348709]
[1763583491333,0.71,132.19,132.15,35.13348709]
[1763583491334,11.2109313,132.18,132.15,35.13348709]
[1763583491751,11.2109313,132.18,132.15,35.80348709]
[1763583491911,11.2109313,132.19,132.16,0.67]
[1763583492230,11.2109313,132.2,132.16,11.8809313]
[1763583492440,11.9209313,132.2,132.16,0.67]
[1763583492603,11.2109313,132.19,132.16,0.67]
[1763583493305,9.78882769,132.21,132.15,35.13348709]
[1763583493510,11.2109313,132.18,132.15,35.13348709]
[1763583493711,11.2109313,132.17,132.15,35.13348709]
[1763583493910,11.2109313,132.18,132.15,35.80348709]
[1763583494229,11.2109313,132.19,132.16,0.67]
[1763583494608,0.71,132.25,132.19,18.12096]
[1763583494810,11.2109313,132.24,132.2,2.47]
[1763583495011,11.2109313,132.24,132.2,13.6809313]
[1763583495228,11.2109313,132.25,132.21,11.8809313]
[1763583495425,11.2109313,132.26,132.22,13.6809313]
[1763583495631,11.2109313,132.26,132.22,47.01441839]
[1763583495834,11.2109313,132.26,132.23,0.67]
[1763583496048,0.71,132.27,132.23,0.67]
[1763583496327,11.9209313,132.27,132.24,1.8]
[1763583496719,11.2109313,132.26,132.24,1.8]
[1763583497041,0.71,132.27,132.24,1.8]
[1763583497229,11.2109313,132.26,132.24,1.8]
[1763583498143,9.78882769,132.28,132.24,2.47]
[1763583498324,11.2109313,132.28,132.25,0.67]
[1763583498524,11.2109313,132.28,132.26,1.8]
[1763583498743,0.71,132.29,132.26,1.8]
[1763583498744,11.9209313,132.29,132.26,1.8]
[1763583498933,11.2109313,132.28,132.26,1.8]
[1763583499241,11.2109313,132.27,132.24,33.33348709]
[1763583499552,11.2109313,132.26,132.24,33.33348709]
[1763583500144,11.9209313,132.27,132.24,33.33348709]
[1763583500533,11.2109313,132.27,132.24,33.33348709]
[1763583500846,10.45882769,132.3,132.25,2.45]
[1763583501047,11.2109313,132.29,132.25,2.45]
[1763583501342,11.8809313,132.29,132.25,2.45]
[1763583501550,11.2109313,132.28,132.25,2.45]
[1763583502048,11.2109313,132.3,132.26,0.65]
[1763583502233,11.2109313,132.3,132.27,1.8]
[1763583502637,11.2109313,132.29,132.27,1.8]
[1763583502948,11.2109313,132.28,132.27,1.8]
[1763583503446,11.2109313,132.29,132.27,1.8]
[1763583504043,11.2109313,132.3,132.27,1.8]
[1763583504258,9.78882769,132.31,132.28,0.65]
[1763583504424,20.99975899,132.31,132.28,33.98348709]
[1763583505543,11.2109313,132.29,132.28,33.33348709]
[1763583506444,21.67975899,132.29,132.28,33.33348709]
[1763583508353,9.78882769,132.28,132.25,1.8]
[1763583508547,11.2109313,132.26,132.25,1.8]
[1763583510453,10.46882769,132.29,132.25,2.46]
[1763583510752,11.2109313,132.27,132.25,2.46]
[1763583510927,10.46882769,132.29,132.25,2.46]
[1763583511135,11.2109313,132.27,132.25,1.8]
[1763583512062,11.2109313,132.26,132.25,1.8]
[1763583512562,9.78882769,132.29,132.25,1.8]
[1763583512563,11.2109313,132.27,132.25,1.8]
[1763583512748,11.2109313,132.26,132.25,1.8]
[1763583513248,11.2109313,132.27,132.25,1.8]
[1763583514370,11.2109313,132.28,132.26,0.66]
[1763583514583,11.8909313,132.28,132.25,35.13348709]
[1763583514736,10.46882769,132.29,132.25,35.79348709]
[1763583514938,11.2109313,132.27,132.25,35.79348709]
[1763583515357,19.92096,132.31,132.26,0.66]
[1763583515560,11.2109313,132.29,132.26,33.99348709]
[1763583515873,11.2109313,132.3,132.27,0.66]
[1763583516164,11.2109313,132.29,132.27,0.66]
[1763583517148,9.78882769,132.3,132.27,0.66]
[1763583517348,20.99975899,132.3,132.27,0.66]
[1763583518565,20.99975899,132.3,132.27,33.99348709]
[1763583518566,11.2109313,132.3,132.27,33.99348709]
[1763583518949,11.2109313,132.3,132.28,0.66]
[1763583519259,11.8909313,132.29,132.25,35.13348709]
[1763583519455,11.8909313,132.29,132.25,35.79348709]
[1763583519456,11.2109313,132.27,132.25,35.79348709]
[1763583520243,11.2109313,132.27,132.25,35.13348709]
[1763583520444,11.2109313,132.26,132.25,35.13348709]
[1763583520674,20.99975899,132.26,132.22,0.66]
[1763583520839,11.2109313,132.25,132.22,35.79348709]
[1763583521263,11.2109313,132.25,132.23,0.66]
[1763583521473,29.3318913,132.3,132.23,11.8709313]
[1763583521474,9.78882769,132.29,132.23,11.8709313]
[1763583521784,11.2109313,132.27,132.24,0.66]
[1763583521960,11.2109313,132.27,132.25,1.8]
[1763583522273,10.46882769,132.29,132.25,1.8]
[1763583522457,11.2109313,132.27,132.25,2.46]
[1763583522853,10.46882769,132.29,132.25,2.46]
[1763583523075,11.2109313,132.26,132.25,2.46]
[1763583523453,11.2109313,132.27,132.25,2.46]
[1763583524748,9.78882769,132.29,132.25,1.8]
[1763583524749,11.2109313,132.26,132.25,1.8]
[1763583525083,11.2109313,132.26,132.24,1.8]
[1763583525354,11.2109313,132.25,132.24,1.8]
[1763583525770,0.68,132.27,132.24,1.8]
[1763583525947,11.2109313,132.25,132.24,1.8]
[1763583527570,0.68,132.27,132.24,1.8]
[1763583527764,11.2109313,132.25,132.24,1.8]
[1763583528456,11.2109313,132.26,132.24,1.8]
[1763583528762,11.2109313,132.26,132.24,2.46]
[1763583529162,11.2109313,132.26,132.24,35.79348709]
[1763583530452,12.27882769,132.29,132.25,0.72]
[1763583530650,11.2109313,132.26,132.24,2.52]
[1763583531279,11.2109313,132.27,132.24,2.52]
[1763583531478,9.78882769,132.28,132.25,0.72]
[1763583531772,11.2109313,132.27,132.25,0.72]
[1763583531960,10.47882769,132.28,132.25,0.72]
[1763583531961,11.2109313,132.26,132.25,0.72]
[1763583532163,9.78882769,132.28,132.25,0.72]
[1763583532361,11.2109313,132.27,132.25,0.72]
[1763583533476,9.78882769,132.28,132.25,0.72]
[1763583533882,11.2109313,132.28,132.25,0.72]
[1763583534067,9.78882769,132.29,132.25,0.72]
[1763583534252,10.47882769,132.3,132.25,0.72]
[1763583534253,11.2109313,132.28,132.25,0.72]
[1763583534694,20.99975899,132.3,132.25,11.9309313]
[1763583534868,9.78882769,132.3,132.25,7.87323341]
[1763583535057,9.78882769,132.32,132.26,7.87323341]
[1763583535378,7.15323341,132.31,132.27,1.8]
[1763583535571,7.15323341,132.3,132.27,2.52]
[1763583535891,7.15323341,132.3,132.28,0.72]
[1763583536690,7.15323341,132.3,132.28,34.05348709]
[1763583537158,7.15323341,132.32,132.29,0.72]
[1763583537360,10.47882769,132.33,132.29,34.05348709]
[1763583537698,7.15323341,132.32,132.3,1.8]
[1763583537896,10.47882769,132.33,132.3,1.8]
[1763583538060,7.15323341,132.32,132.3,2.52]
[1763583538394,10.57882769,132.35,132.3,1.8]
[1763583538554,0.1,132.35,132.31,0.72]
[1763583538754,3.1021149,132.35,132.31,0.72]
[1763583539185,0.1,132.35,132.31,3.7221149]
[1763583539487,0.1,132.35,132.3,33.33348709]
[1763583539488,0.1,132.35,132.32,5.5221149]
[1763583540150,3.1021149,132.35,132.32,1.8]
[1763583540357,3.1021149,132.35,132.3,54.45656199]
[1763583540570,0.1,132.35,132.32,0.72]
[1763583540757,0.1,132.35,132.32,3.7221149]
[1763583540958,0.1,132.35,132.34,21.1230749]
[1763583541286,3.0021149,132.4,132.34,23.6430749]
[1763583541580,0.1,132.43,132.37,21.1230749]
[1763583541791,9.88882769,132.43,132.38,2.52]
[1763583541993,9.88882769,132.43,132.38,5.5221149]
[1763583542158,10.57882769,132.43,132.39,0.72]
[1763583542358,3.0021149,132.42,132.39,0.72]
[1763583542766,9.88882769,132.43,132.39,0.72]
[1763583542971,3.0021149,132.42,132.39,0.72]
[1763583543889,3.6921149,132.42,132.38,2.52]
[1763583544088,3.0021149,132.42,132.39,0.72]
[1763583544493,13.58094259,132.43,132.39,0.72]
[1763583544675,12.89094259,132.43,132.39,0.72]
[1763583544876,17.02792277,132.43,132.39,0.72]
[1763583545179,0.1,132.43,132.42,7.13909508]
[1763583545384,0.1,132.43,132.42,42.99258217]
[1763583546173,0.1,132.43,132.42,27.78005508]
[1763583546681,0.1,132.43,132.42,18.84096]
[1763583546872,0.1,132.43,132.42,20.64096]
[1763583548787,0.1,132.43,132.42,1.8]
[1763583548997,7.23909508,132.43,132.41,1.8]
[1763583549169,0.1,132.43,132.42,2.52]
[1763583549684,0.1,132.43,132.42,9.65909508]
[1763583550471,0.1,132.43,132.42,27.78005508]
[1763583551488,0.1,132.44,132.43,18.12096]
[1763583551703,0.1,132.44,132.43,25.98005508]
[1763583553892,0.1,132.44,132.43,18.84096]
[1763583554088,0.1,132.44,132.43,25.98005508]
[1763583554904,0.1,132.44,132.43,0.72]
[1763583555091,0.1,132.44,132.43,9.65909508]
[1763583556198,0.1,132.44,132.43,27.78005508]
[1763583556518,0.1,132.44,132.43,20.64096]
[1763583556827,0.1,132.44,132.43,27.78005508]
[1763583557493,0.1,132.47,132.46,18.12096]
[1763583557691,0.1,132.47,132.46,27.06005508]
[1763583557916,0.1,132.47,132.46,27.78005508]
[1763583559486,0.1,132.47,132.44,18.84096]
[1763583559701,0.1,132.47,132.46,7.13909508]
[1763583560017,0.1,132.47,132.45,2.52]
[1763583560214,0.1,132.47,132.46,9.62909508]
[1763583561520,0.1,132.47,132.46,1.8]
[1763583562098,0.1,132.47,132.46,2.49]
[1763583562494,0.1,132.47,132.46,9.62909508]
[1763583564510,0.1,132.47,132.46,7.82909508]
[1763583564688,0.1,132.47,132.46,7.13909508]
[1763583564885,0.1,132.47,132.46,1.8]
[1763583565090,0.1,132.47,132.46,2.49]
[1763583565292,0.1,132.47,132.46,9.62909508]
[1763583566886,0.1,132.47,132.46,23.60447762]
[1763583567112,0.1,132.47,132.46,21.80447762]
[1763583567314,0.1,132.47,132.46,23.60447762]
[1763583567501,0.1,132.47,132.46,18.12096]
[1763583567706,0.1,132.47,132.46,1.8]
[1763583569318,12.88234531,132.47,132.46,1.8]
[1763583569621,13.59234531,132.47,132.46,1.8]
[1763583570417,0.1,132.47,132.46,1.8]
[1763583571503,0.1,132.47,132.46,2.48]
[1763583572123,0.1,132.47,132.46,5.47351762]
[1763583572298,0.1,132.47,132.46,19.92096]
[1763583572499,0.1,132.47,132.46,20.60096]
[1763583573201,0.1,132.47,132.44,0.68]
[1763583573513,0.1,132.47,132.45,1.8]
[1763583573696,0.1,132.47,132.45,2.48]
[1763583573890,0.1,132.47,132.46,0.68]
[1763583574297,0.1,132.47,132.46,3.67351762]
[1763583574602,0.1,132.47,132.46,0.68]
[1763583575132,0.1,132.47,132.46,3.67351762]
[1763583575514,0.1,132.47,132.46,0.68]
[1763583576930,0.1,132.47,132.46,3.67351762]
[1763583577504,0.1,132.47,132.46,18.80096]
[1763583578226,0.1,132.47,132.46,3.67351762]
[1763583578429,0.1,132.47,132.46,0.68]
[1763583578804,0.1,132.47,132.46,3.67351762]
[1763583579628,0.1,132.47,132.46,0.68]
[1763583579806,0.1,132.47,132.46,3.67351762]
[1763583580633,0.1,132.47,132.46,18.80096]
[1763583580928,0.1,132.47,132.46,21.79447762]
[1763583581138,0.1,132.47,132.45,2.99351762]
[1763583581300,0.1,132.47,132.46,1.8]
[1763583581301,9.88882769,132.47,132.46,1.8]
[1763583581743,10.59882769,132.47,132.46,1.8]
[1763583582833,13.59234531,132.47,132.46,1.8]
[1763583583826,13.59234531,132.47,132.41,0.68]
[1763583584026,9.78882769,132.45,132.42,1.8]
[1763583584226,2.99351762,132.44,132.42,1.8]
[1763583584431,9.78882769,132.42,132.39,0.68]
[1763583584617,3.70351762,132.42,132.4,1.8]
[1763583584929,10.49882769,132.41,132.4,1.8]
[1763583585446,9.78882769,132.4,132.32,22.20027741]
[1763583585625,12.78234531,132.33,132.28,0.68]
[1763583585931,12.78234531,132.32,132.31,1.8]
[1763583586114,1.8,132.4,132.31,1.8]
[1763583586315,2.99351762,132.35,132.31,1.8]
[1763583586518,0.71,132.39,132.33,2.99351762]
[1763583586724,0.71,132.39,132.33,21.11447762]
[1763583586725,2.99351762,132.38,132.33,21.11447762]
[1763583586929,7.14308133,132.38,132.34,0.68]
[1763583587129,7.14308133,132.39,132.35,1.8]
[1763583587330,7.85308133,132.39,132.35,1.8]
[1763583587534,7.85308133,132.39,132.36,18.12096]
[1763583587717,0.71,132.38,132.36,18.12096]
[1763583587918,0.71,132.38,132.35,19.92096]
[1763583588113,9.78882769,132.37,132.35,19.92096]
[1763583588335,16.93190902,132.37,132.35,1.8]
[1763583588538,17.64190902,132.37,132.35,1.8]
[1763583588734,16.93190902,132.37,132.35,1.8]
[1763583588914,0.71,132.36,132.35,1.8]
[1763583589240,17.64190902,132.37,132.35,1.8]
[1763583589535,0.71,132.36,132.35,1.8]
[1763583589740,17.64190902,132.36,132.35,1.8]
[1763583590236,9.78882769,132.35,132.32,1.8]
[1763583590544,16.93190902,132.35,132.33,18.12096]
[1763583590834,0.72,132.35,132.32,1.8]
[1763583591226,9.78882769,132.35,132.32,8.94308133]
[1763583591940,17.65190902,132.34,132.32,1.8]
[1763583592125,9.78882769,132.35,132.32,2.46]
[1763583592332,16.93190902,132.35,132.32,1.8]
[1763583592649,0.72,132.34,132.32,19.92096]
[1763583592845,7.86308133,132.34,132.32,1.8]
[1763583593044,0.72,132.34,132.32,1.8]
[1763583593220,10.50882769,132.33,132.32,1.8]
[1763583593420,9.78882769,132.33,132.32,1.8]
[1763583594918,9.78882769,132.36,132.32,9.60308133]
[1763583595118,16.93190902,132.36,132.32,9.60308133]
[1763583595338,7.14308133,132.38,132.33,7.80308133]
[1763583595823,9.78882769,132.36,132.33,7.80308133]
[1763583596532,9.78882769,132.36,132.34,7.14308133]
[1763583596721,9.78882769,132.36,132.35,1.8]
[1763583596916,20.98306232,132.36,132.35,40.5]
[1763583597625,21.70306232,132.36,132.35,40.5]
[1763583599239,39.82402232,132.36,132.35,40.5]
[1763583600338,28.62978769,132.36,132.35,40.5]
[1763583600531,27.90978769,132.36,132.35,40.5]
[1763583600930,20.98306232,132.36,132.35,40.5]
[1763583601331,9.78882769,132.35,132.34,40.5]
[1763583601536,9.78882769,132.36,132.34,40.5]
[1763583601737,21.70306232,132.36,132.34,40.5]
[1763583602325,9.78882769,132.37,132.34,41.16]
[1763583602531,9.78882769,132.37,132.35,1.8]
[1763583602532,20.98306232,132.37,132.35,1.8]
[1763583602749,21.70306232,132.37,132.35,1.8]
[1763583603252,27.90978769,132.35,132.34,40.5]
[1763583603457,39.10402232,132.35,132.34,40.5]
[1763583603630,39.82402232,132.35,132.34,40.5]
[1763583606153,20.98306232,132.35,132.34,40.5]
[1763583606928,33.32133431,132.35,132.32,40.5]
[1763583607240,32.60133431,132.33,132.32,40.5]
[1763583607630,33.32133431,132.33,132.32,40.5]
[1763583607830,9.78882769,132.32,132.28,40.5]
[1763583608030,14.48037431,132.29,132.28,40.5]
[1763583608255,9.78882769,132.29,132.28,42.3]
[1763583608431,18.12096,132.31,132.28,42.96]
[1763583608750,9.78882769,132.3,132.28,42.96]
[1763583608957,9.78882769,132.31,132.28,47.65154662]
[1763583610043,15.20037431,132.31,132.28,42.3]
[1763583610342,0.72,132.3,132.29,1.8]
[1763583610546,0.72,132.31,132.29,1.8]
[1763583610737,4.69154662,132.3,132.29,1.8]
[1763583610938,0.72,132.3,132.29,42.3]
[1763583611162,5.41154662,132.3,132.26,40.7]
[1763583611370,5.41154662,132.3,132.26,42.5]
[1763583611371,9.78882769,132.27,132.26,42.5]
[1763583612158,22.81250662,132.28,132.27,30.71117231]
[1763583612340,18.12096,132.33,132.27,30.71117231]
[1763583612548,4.69154662,132.28,132.27,22.91117231]
[1763583613637,5.41154662,132.28,132.27,22.91117231]
[1763583614047,0.72,132.28,132.27,22.91117231]
[1763583614238,15.20037431,132.28,132.27,22.91117231]
[1763583615949,10.50882769,132.28,132.27,22.91117231]
[1763583616154,27.90978769,132.28,132.27,22.91117231]
[1763583616354,33.32133431,132.28,132.27,22.91117231]
[1763583616970,15.20037431,132.28,132.27,22.91117231]
[1763583617860,33.32133431,132.28,132.27,22.91117231]